bitfinex-derivatives/quotes_ETHF0:USTF0_20250520
["timestamp","ask_amount","ask_price","bid_price","bid_amount"]
[1747699951253,0.7865,2542.1,2541.9,5.31163]
[1747699951459,0.78652,2542.0,2541.9,4.5251]
[1747699951758,0.78652,2542.0,2541.9,5.31165]
[1747699951958,0.78651,2542.1,2541.9,5.31165]
[1747699952153,1.95740294,2542.3,2542.0,0.7865]
[1747699952154,0.67010294,2542.3,2542.0,0.7865]
[1747699952458,2.07378,2542.2,2542.0,0.7865]
[1747699952646,0.78649,2542.1,2542.0,1.3672]
[1747699952850,5.67010294,2542.3,2542.0,1.3672]
[1747699952851,0.67010294,2542.3,2542.0,1.3672]
[1747699953052,0.67010294,2542.3,2542.2,3.99426]
[1747699953852,0.00390294,2542.3,2542.2,3.99426]
[1747699954361,0.78646,2542.2,2542.1,0.78647]
[1747699954560,0.00390294,2542.3,2542.0,4.575]
[1747699954761,0.00390294,2542.3,2542.1,0.78649]
[1747699954955,0.79035294,2542.3,2542.2,0.78646]
[1747699955359,0.00390294,2542.3,2542.2,0.78646]
[1747699955760,0.00390294,2542.3,2542.0,4.575]
[1747699955761,0.78647,2542.2,2542.1,0.78647]
[1747699956064,2.13307,2542.2,2542.1,0.78647]
[1747699956366,1.3466,2542.2,2542.0,4.575]
[1747699956568,0.78649,2542.1,2542.0,5.36149]
[1747699956765,0.78658,2541.8,2541.7,3.92150191]
[1747699957065,1.3466,2542.0,2541.9,0.78655]
[1747699957264,1.3902,2542.1,2542.0,0.78652]
[1747699957459,0.00390294,2542.3,2542.0,3.2078]
[1747699957668,0.00390294,2542.3,2542.2,0.78646]
[1747699958063,0.78649,2542.1,2542.0,3.2078]
[1747699958670,2.13829,2542.1,2542.0,3.2078]
[1747699959566,1.3518,2542.1,2541.7,3.21370191]
[1747699959761,0.78658,2541.8,2541.7,3.21370191]
[1747699959962,0.78657,2541.9,2541.7,3.21370191]
[1747699960165,2.13838,2541.8,2541.7,3.21370191]
[1747699960565,7.13838,2541.8,2541.7,3.21370191]
[1747699960764,2.13838,2541.8,2541.7,3.21370191]
[1747699960965,7.13838,2541.8,2541.7,3.21370191]
[1747699961165,7.13838,2541.8,2541.7,0.00590191]
[1747699961368,10.34618,2541.8,2541.7,0.00590191]
[1747699961872,0.78673,2541.3,2541.2,1.2676]
[1747699962276,0.78686,2540.9,2540.8,3.2078]
[1747699963074,0.78686,2540.9,2540.8,4.5328]
[1747699963874,1.2751,2541.0,2540.8,5.31969]
[1747699964075,1.48233,2541.1,2540.8,4.5328]
[1747699964376,0.6955,2541.1,2541.0,0.78683]
[1747699964882,0.78682,2541.1,2540.9,0.78684]
[1747699965072,0.78686,2540.9,2540.8,3.99467]
[1747699965270,1.3666,2541.1,2540.8,3.2078]
[1747699965470,0.78686,2540.9,2540.8,3.2078]
[1747699965670,0.78686,2540.9,2540.8,4.4624]
[1747699966085,0.78686,2540.9,2540.8,3.2078]
[1747699966473,2.60767,2541.2,2540.8,3.2078]
[1747699966474,0.6407,2541.2,2540.8,3.2078]
[1747699966672,0.78683,2541.0,2540.9,2.04144]
[1747699967180,0.78683,2541.0,2540.9,1.2546]
[1747699967378,0.78683,2541.0,2540.9,2.04146]
[1747699967579,0.78683,2541.0,2540.9,1.2546]
[1747699968577,0.78686,2540.9,2540.8,3.2078]
[1747699971881,0.78686,2540.9,2540.8,3.99469]
[1747699974083,0.78686,2540.9,2540.8,3.2078]
[1747699974580,0.78692,2540.7,2540.6,0.00590191]
[1747699975680,7.07842,2540.7,2540.6,0.00590191]
[1747699976585,2.07842,2540.7,2540.6,0.00590191]
[1747699976780,0.00590191,2540.9,2540.8,0.78689]
[1747699977082,0.78689,2540.8,2540.7,1.3858]
[1747699977790,0.79278191,2540.9,2540.8,0.78689]
[1747699978289,0.00590191,2540.9,2540.8,1.47739]
[1747699979385,0.00590191,2540.9,2540.8,0.78689]
[1747699979583,0.00590191,2540.9,2540.8,1.46459]
[1747699982284,3.2078,2542.0,2540.8,14.3787]
[1747699982490,8.701,2542.1,2541.6,0.78662]
[1747699982689,0.7866,2541.8,2541.7,1.2622]
[1747699984193,0.78664,2541.6,2541.5,3.2078]
[1747699984490,9.48764,2541.6,2541.5,3.2078]
[1747699984884,10.14274,2541.6,2541.5,3.2078]
[1747699985090,0.78673,2541.3,2541.2,1.2806]
[1747699985290,9.3561,2541.6,2541.2,1.2806]
[1747699985493,0.7867,2541.5,2541.3,1.46021]
[1747699985793,0.7867,2541.5,2541.4,1.2806]
[1747699986588,8.7,2541.9,2541.5,0.78667]
[1747699986789,8.7,2541.9,2541.4,4.4884]
[1747699986790,8.7,2541.9,2541.6,1.3787]
[1747699986990,0.78661,2541.7,2541.6,1.3787]
[1747699987187,0.673,2541.8,2541.6,1.3787]
[1747699987487,0.6557,2541.9,2541.6,1.3787]
[1747699987692,8.70390294,2542.0,2541.6,1.3787]
[1747699987893,0.78661,2541.7,2541.6,2.16533]
[1747699988394,0.78661,2541.7,2541.6,1.3787]
[1747699989294,0.7867,2541.4,2541.3,0.6735]
[1747699989485,0.7867,2541.4,2541.3,2.0181]
[1747699991990,0.7867,2541.4,2541.3,1.3446]
[1747699993192,0.78677,2541.2,2541.1,3.2078]
[1747699994794,0.78686,2540.9,2540.8,3.2078]
[1747699996598,0.78689,2540.8,2540.7,1.3843]
[1747699997091,0.78687,2540.9,2540.7,1.3843]
[1747699997295,0.6933,2541.0,2540.9,0.78684]
[1747699997296,0.78684,2541.0,2540.9,0.78684]
[1747699997791,0.78684,2541.0,2540.9,1.2923]
[1747699998395,9.48682,2541.1,2541.0,0.78683]
[1747699998790,0.78683,2541.0,2540.9,2.07914]
[1747699998990,0.78682,2541.1,2541.0,0.78682]
[1747699999192,0.78679,2541.2,2541.1,0.78679]
[1747699999700,0.78679,2541.2,2541.1,3.99459]
[1747699999890,0.78679,2541.2,2541.1,3.2078]
[1747700001492,2.94806529,2541.5,2541.2,0.78675]
[1747700001493,0.78674,2541.3,2541.2,0.78675]
[1747700001698,0.78674,2541.3,2541.2,2.23585]
[1747700002097,0.78674,2541.3,2541.2,1.4491]
[1747700002994,0.78674,2541.3,2541.2,0.7206]
[1747700003194,0.78677,2541.2,2541.1,3.2078]
[1747700004001,0.78689,2540.8,2540.7,4.6569]
[1747700004495,0.78689,2540.8,2540.7,3.9284]
[1747700004899,0.78689,2540.8,2540.7,3.2078]
[1747700005802,0.78692,2540.7,2540.6,0.00590191]
[1747700006002,1.50552,2540.7,2540.6,0.00590191]
[1747700006899,42.30552,2540.7,2540.6,0.00590191]
[1747700007802,0.78692,2540.7,2540.6,0.00590191]
[1747700008501,0.78692,2540.7,2540.6,0.79285191]
[1747700008795,40.8,2540.9,2540.6,0.00590191]
[1747700008999,0.78692,2540.7,2540.6,0.79284191]
[1747700009801,0.7869,2540.8,2540.7,0.78691]
[1747700010000,0.7869,2540.8,2540.7,2.04921]
[1747700010395,0.7869,2540.8,2540.7,5.25701]
[1747700010601,0.7869,2540.8,2540.7,4.4701]
[1747700011103,0.7869,2540.8,2540.7,1.2623]
[1747700011300,2.1043,2540.8,2540.7,1.2623]
[1747700013005,0.98134529,2540.9,2540.7,1.2623]
[1747700013006,0.98134529,2540.9,2540.8,0.78689]
[1747700013201,0.98134529,2540.9,2540.8,1.46039]
[1747700013404,0.98134529,2541.0,2540.9,0.78686]
[1747700013902,0.98134529,2541.0,2540.9,7.11046]
[1747700015103,0.98134529,2541.0,2540.9,2.11046]
[1747700015808,0.98134529,2541.0,2540.9,2.61598745]
[1747700016008,0.98134529,2541.0,2540.9,7.61598745]
[1747700016206,1.30188362,2541.4,2541.3,0.78673]
[1747700016508,1.30188362,2541.4,2541.3,3.99453]
[1747700016903,0.98348766,2541.8,2541.7,0.78658]
[1747700017109,0.98348766,2541.8,2541.7,3.99438]
[1747700017309,1.77006766,2541.8,2541.7,3.99438]
[1747700017504,0.98348766,2541.8,2541.7,3.99438]
[1747700017703,1.77006766,2541.8,2541.7,3.2078]
[1747700018104,1.77006766,2541.8,2541.7,4.4698]
[1747700018407,0.98348766,2541.8,2541.7,5.25641]
[1747700020407,0.79043294,2542.0,2541.8,0.78655]
[1747700020611,0.79043294,2542.0,2541.9,1.3714]
[1747700022811,0.78658,2541.8,2541.7,3.2078]
[1747700023114,0.78661,2541.7,2541.6,1.3713]
[1747700023705,8.598,2541.7,2541.2,3.2078]
[1747700023912,0.78673,2541.3,2541.2,3.99455]
[1747700024309,0.00390294,2542.0,2541.3,1.96684]
[1747700024508,0.78659,2541.8,2541.7,0.7866]
[1747700025114,0.78659,2541.8,2541.7,2.1579]
[1747700025611,8.598,2541.9,2541.8,0.78658]
[1747700025799,8.598,2541.9,2541.8,2.16748]
[1747700026006,8.60190294,2542.0,2541.9,0.78655]
[1747700026307,9.38842294,2542.0,2541.9,5.37525]
[1747700026708,9.38842294,2542.0,2541.9,4.5887]
[1747700027909,9.38842294,2542.0,2541.9,3.2078]
[1747700028220,1.96646,2541.9,2541.4,1.3809]
[1747700028410,0.00390294,2542.0,2541.9,0.78655]
[1747700028713,0.00390294,2542.0,2541.9,2.06565]
[1747700028913,0.00390294,2542.0,2541.9,2.76605]
[1747700032321,1.96559,2543.0,2541.9,2.76605]
[1747700032322,1.90738771,2543.8,2543.7,0.78599]
[1747700032619,1.96346853,2544.3,2543.9,3.2078]
[1747700032809,1.96346853,2544.3,2544.2,3.99364]
[1747700033313,1.96346853,2544.3,2544.2,4.53936998]
[1747700033515,1.96346853,2544.3,2544.2,3.75352998]
[1747700033916,0.89116853,2544.3,2544.2,9.53936998]
[1747700034219,0.58066853,2544.3,2544.2,18.67036998]
[1747700034517,0.58066853,2544.3,2544.2,3.75352998]
[1747700034711,0.58066853,2544.3,2544.2,9.53936998]
[1747700034915,0.94346599,2544.6,2544.5,0.78574]
[1747700035118,0.94346599,2544.6,2544.5,3.2078]
[1747700035511,0.94346599,2544.6,2544.5,3.99354]
[1747700036115,0.94346599,2544.6,2544.5,3.2078]
[1747700036315,0.94346599,2544.6,2544.5,3.99354]
[1747700037320,0.94346599,2544.6,2544.5,3.2078]
[1747700037722,1.72917599,2544.6,2544.5,3.2078]
[1747700038414,7.10888674,2544.6,2544.5,3.2078]
[1747700038620,14.98399708,2544.6,2544.5,3.2078]
[1747700039021,14.19828708,2544.6,2544.5,3.2078]
[1747700039221,1.3295,2545.7,2544.5,3.2078]
[1747700039514,1.3295,2545.7,2544.3,9.126]
[1747700039515,6.32317674,2545.3,2545.0,0.78557]
[1747700039720,7.65267674,2545.2,2544.6,1.3777]
[1747700039911,8.43821674,2545.2,2545.1,3.2078]
[1747700040113,8.43820674,2545.2,2545.1,3.2078]
[1747700040312,7.65267674,2545.2,2545.1,3.2078]
[1747700040813,8.43820674,2545.2,2545.1,3.2078]
[1747700041021,16.31331708,2545.2,2545.1,3.2078]
[1747700041320,0.78568,2544.7,2544.0,0.00590191]
[1747700041615,0.78568,2544.7,2544.6,0.78571]
[1747700041616,6.32317674,2544.7,2544.6,0.78571]
[1747700041919,0.7085,2545.1,2544.6,3.2078]
[1747700042123,7.81723674,2545.1,2544.9,3.99342]
[1747700042313,7.81723674,2545.1,2544.9,3.2078]
[1747700042516,7.03167674,2545.1,2544.9,3.2078]
[1747700042717,0.7085,2545.1,2544.9,3.2078]
[1747700042917,7.03167674,2545.1,2544.9,3.99341]
[1747700043323,7.81723674,2545.1,2544.9,3.2078]
[1747700043515,7.03167674,2545.1,2544.9,3.99342]
[1747700043710,7.10876674,2545.0,2544.9,3.2078]
[1747700043927,0.78569,2544.7,2544.4,3.99355]
[1747700044224,7.10886674,2544.7,2544.6,3.2078]
[1747700044415,0.78541,2545.6,2544.6,12.7878]
[1747700044620,2.70186674,2545.6,2545.5,3.2078]
[1747700044816,3.48727674,2545.6,2545.5,3.2078]
[1747700045416,45.3848,2546.1,2545.5,3.2078]
[1747700045622,2.70186674,2545.9,2545.6,0.78541]
[1747700045926,3.48723674,2545.8,2545.6,2.15659]
[1747700046215,12.45991034,2546.1,2545.7,0.78537]
[1747700046216,3.48719674,2545.9,2545.7,0.78537]
[1747700046421,3.48719674,2545.9,2545.7,2.15657]
[1747700046622,0.78534,2545.8,2545.7,4.579]
[1747700047221,0.78534,2545.8,2545.7,3.2078]
[1747700048626,0.78546,2545.5,2545.4,3.2078]
[1747700049218,0.78542,2545.6,2545.4,3.99327]
[1747700049426,0.78544,2545.5,2545.4,3.99327]
[1747700049621,0.78544,2545.5,2545.4,3.2078]
[1747700049816,4.5848,2546.1,2545.4,3.2078]
[1747700049817,9.88855751,2547.0,2545.4,10.17143]
[1747700050023,1.96259,2546.8,2545.9,3.2078]
[1747700050325,0.78522,2546.2,2546.1,0.00590191]
[1747700050714,7.86163708,2546.2,2546.1,0.00590191]
[1747700051818,7.86163708,2546.2,2545.3,1.3557]
[1747700051819,1.96314,2546.1,2545.5,3.99322]
[1747700052116,0.78541,2545.6,2545.5,3.2078]
[1747700052817,7.86182708,2545.6,2545.5,3.2078]
[1747700053020,0.78547,2545.4,2545.3,0.00590191]
[1747700053426,7.86188708,2545.4,2545.3,0.00590191]
[1747700053829,0.78553,2545.2,2545.1,3.2078]
[1747700054132,0.78562,2544.9,2544.8,3.2078]
[1747700054835,0.7857,2544.7,2544.6,0.00590191]
[1747700055023,3.2078,2546.3,2544.6,14.58090191]
[1747700055333,0.79127191,2545.8,2545.6,0.78539]
[1747700055527,0.78539,2545.7,2545.5,3.99321]
[1747700055726,7.08231899,2545.8,2545.5,3.2078]
[1747700055931,0.78541,2545.6,2545.5,3.2078]
[1747700056723,0.00590191,2545.8,2545.5,3.2078]
[1747700057032,0.78541,2545.6,2545.5,3.99323]
[1747700057325,0.78541,2545.6,2545.5,3.2078]
[1747700058231,7.86182708,2545.6,2545.5,3.2078]
[1747700059031,7.07641708,2545.6,2545.5,3.99324]
[1747700059428,7.74711708,2545.6,2545.5,3.2078]
[1747700059728,7.74711708,2545.6,2545.5,3.99324]
[1747700060329,0.6707,2545.6,2545.5,3.99324]
[1747700060527,1.9265,2545.6,2545.5,3.99324]
[1747700060722,0.00590191,2545.8,2545.5,3.2078]
[1747700060922,1.91e-06,2545.8,2545.7,0.78537]
[1747700061327,1.91e-06,2545.8,2545.5,3.2078]
[1747700061328,7.07641899,2545.8,2545.5,3.99322]
[1747700061531,7.07641899,2545.8,2545.5,3.2078]
[1747700061532,0.78541,2545.6,2545.5,3.2078]
[1747700062030,7.86182708,2545.6,2545.5,3.2078]
[1747700062326,0.78544,2545.5,2545.4,1.02385861]
[1747700062533,8.34971708,2545.5,2544.9,5.45789611]
[1747700062732,0.78559,2545.0,2544.9,4.67229611]
[1747700063029,0.78559,2545.0,2544.9,2.02415459]
[1747700063231,7.86200708,2545.0,2544.9,2.02415459]
[1747700063647,9.13530708,2545.0,2544.9,2.02415459]
[1747700064035,12.34310708,2545.0,2544.9,2.02415459]
[1747700064731,17.34310708,2545.0,2544.9,2.02415459]
[1747700065133,17.34310708,2545.0,2544.9,0.55965848]
[1747700065333,18.02120708,2545.0,2544.9,0.55965848]
[1747700065634,12.12321,2545.0,2544.3,0.67827348]
[1747700065833,0.78572,2544.6,2544.4,0.78577]
[1747700066031,1.3265,2544.5,2544.4,0.78577]
[1747700066224,1.91e-06,2545.8,2544.7,1.9642]
[1747700066425,0.78547,2545.4,2545.1,0.78554]
[1747700066626,1.3265,2545.3,2545.2,3.99333]
[1747700067228,1.3265,2545.3,2545.2,3.2078]
[1747700067625,8.67384911,2545.3,2545.2,3.2078]
[1747700067933,7.88834911,2545.3,2545.0,0.00590191]
[1747700068130,0.78556,2545.1,2545.0,0.00590191]
[1747700068631,8.68510911,2545.1,2545.0,0.00590191]
[1747700068825,9.36120911,2545.1,2545.0,0.00590191]
[1747700072733,0.78551,2545.3,2545.1,0.78554]
[1747700072931,1.91e-06,2545.8,2545.0,9.86190191]
[1747700072932,0.78545,2545.5,2545.3,0.78548]
[1747700073126,0.78545,2545.5,2545.2,3.2078]
[1747700073337,0.78545,2545.5,2545.3,2.05059]
[1747700073638,1.33,2545.4,2545.3,2.05059]
[1747700074131,1.48795191,2545.8,2545.3,1.2651]
[1747700074331,2.79216191,2545.8,2545.6,0.78538]
[1747700074533,0.78537,2545.7,2545.6,0.78538]
[1747700074836,2.08957,2545.7,2545.6,0.78538]
[1747700075634,1.3042,2545.7,2545.6,0.78538]
[1747700076137,2.08957,2545.7,2545.6,0.78538]
[1747700076431,0.78541,2545.6,2545.5,3.2078]
[1747700076634,0.78547,2545.4,2545.3,1.2651]
[1747700076831,1.3042,2545.6,2545.3,0.7855]
[1747700077038,0.78548,2545.4,2545.2,3.2078]
[1747700077337,7.86604911,2545.6,2545.2,4.5811]
[1747700077533,7.86604911,2545.6,2545.3,1.3733]
[1747700077732,0.78544,2545.5,2545.3,2.15878]
[1747700077936,0.7855,2545.3,2545.2,3.2078]
[1747700078327,5.17122191,2545.8,2545.2,3.99331]
[1747700078645,0.78545,2545.5,2545.3,1.3733]
[1747700078936,0.7855,2545.3,2545.2,3.2078]
[1747700079127,1.3724,2545.4,2545.1,0.78554]
[1747700079435,6.56184911,2545.6,2545.2,0.53709617]
[1747700079637,0.78548,2545.4,2545.3,0.78548]
[1747700079835,0.78548,2545.4,2545.3,1.3733]
[1747700080038,0.78545,2545.5,2545.3,2.1588]
[1747700080338,2.11865,2545.5,2545.3,2.1588]
[1747700080734,0.78547,2545.4,2545.3,1.3733]
[1747700081137,0.78545,2545.5,2545.3,2.15879]
[1747700081339,7.34729911,2545.5,2545.3,2.15879]
[1747700081540,0.78547,2545.4,2545.3,2.15879]
[1747700081738,2.11867,2545.4,2545.3,1.3733]
[1747700081939,0.7855,2545.3,2545.2,3.2078]
[1747700082243,0.7855,2545.3,2545.0,0.00590191]
[1747700082244,0.78556,2545.1,2545.0,0.00590191]
[1747700082842,7.34740911,2545.1,2545.0,0.00590191]
[1747700083637,8.69090911,2545.1,2545.0,0.00590191]
[1747700084136,18.54590911,2545.1,2545.0,0.00590191]
[1747700084336,0.78565,2544.8,2544.7,0.67827348]
[1747700084738,11.1985,2545.1,2544.7,0.67827348]
[1747700085042,0.78565,2544.8,2544.7,1.94077348]
[1747700085239,0.78565,2544.8,2544.7,2.72645348]
[1747700085443,0.78565,2544.8,2544.7,1.94077348]
[1747700085643,0.78565,2544.8,2544.7,1.2625]
[1747700086445,0.78565,2544.8,2544.7,2.04818]
[1747700087745,0.78568,2544.7,2544.6,3.2078]
[1747700087945,2.14798,2544.7,2544.6,3.2078]
[1747700089343,2.14798,2544.7,2544.6,4.5412]
[1747700089344,0.78568,2544.7,2544.6,4.5412]
[1747700089543,0.78568,2544.7,2544.6,3.2078]
[1747700091348,2.03928,2544.7,2544.6,3.2078]
[1747700092249,0.78571,2544.6,2544.5,0.00590191]
[1747700092548,2.04621,2544.6,2544.5,0.00590191]
[1747700092742,8.60805911,2544.6,2544.5,0.00590191]
[1747700094549,9.33665911,2544.6,2544.5,0.00590191]
[1747700094750,12.54445911,2544.6,2544.5,0.00590191]
[1747700095756,12.55097193,2544.6,2544.5,0.00590191]
[1747700096346,9.34317193,2544.6,2544.5,0.00590191]
[1747700099352,2.78132282,2544.6,2544.5,0.00590191]
[1747700099553,9.34317193,2544.6,2544.5,0.00590191]
[1747700101458,2.78132282,2544.6,2544.5,0.79164191]
[1747700101855,2.78132282,2544.6,2544.5,0.00590191]
[1747700103058,2.78132282,2544.6,2544.5,0.79164191]
[1747700103252,1.99561282,2544.6,2544.5,0.79164191]
[1747700103557,1.26701282,2544.6,2544.5,0.79164191]
[1747700104150,1.26701282,2544.6,2544.5,2.08434191]
[1747700104662,0.00651282,2544.6,2544.5,2.73704191]
[1747700106959,0.00651282,2544.6,2544.5,3.27261754]
[1747700108261,0.97580165,2545.2,2544.7,1.96414]
[1747700108558,43.51752472,2546.2,2545.1,3.2078]
[1747700108559,1.28677759,2545.7,2545.1,3.2078]
[1747700108746,1.28677759,2545.7,2545.6,3.99321]
[1747700108954,1.28677759,2545.7,2545.6,13.54121]
[1747700109459,1.60497275,2546.0,2545.6,13.54121]
[1747700109460,1.60497275,2546.0,2545.7,0.78537]
[1747700109761,1.60497275,2546.0,2545.7,2.07197]
[1747700110173,1.60497275,2546.0,2545.7,7.07197]
[1747700110663,3.90852472,2546.2,2545.7,6.2866]
[1747700110870,6.25050727,2547.2,2547.1,0.78494]
[1747700111155,4.43145485,2548.1,2548.0,0.78467]
[1747700111361,6.59806428,2548.3,2548.2,0.7846]
[1747700111362,6.5224224,2548.3,2548.2,0.7846]
[1747700111552,4.1345224,2548.3,2548.2,1.0799018]
[1747700111748,4.1345224,2548.3,2548.2,6.0799018]
[1747700111953,4.1345224,2548.3,2548.2,10.6269018]
[1747700112149,4.52292605,2550.0,2548.3,3.2078]
[1747700112357,12.02568547,2549.9,2549.3,3.2078]
[1747700112553,12.02568547,2549.9,2548.7,1.96112]
[1747700112554,1.31512605,2550.0,2549.6,3.2078]
[1747700112749,8.27223786,2549.7,2549.5,13.2038]
[1747700112960,15.23348547,2549.6,2548.7,0.78443]
[1747700113157,8.27223786,2549.0,2548.9,0.00588893]
[1747700113352,0.78436,2549.0,2548.9,0.00588893]
[1747700113553,0.78436,2549.0,2548.1,0.30893256]
[1747700113554,0.78454,2548.4,2548.1,0.30893256]
[1747700113753,8.27223786,2548.4,2547.8,3.2078]
[1747700113959,3.2078,2548.8,2548.2,3.2078]
[1747700114260,1.2639,2548.7,2548.2,3.2078]
[1747700114455,2.94057281,2549.5,2548.6,3.2078]
[1747700114656,8.27223786,2549.0,2548.7,10.78043]
[1747700114854,8.27223786,2548.9,2548.6,9.996]
[1747700115055,12.02568547,2548.7,2548.4,3.2078]
[1747700115255,8.27223786,2548.7,2548.4,3.2078]
[1747700115452,0.00588893,2548.8,2548.4,3.2078]
[1747700115864,0.00588893,2548.8,2548.7,0.78445]
[1747700116270,8.93e-06,2548.8,2548.7,8.99225]
[1747700116460,2.94057281,2549.5,2548.7,8.99225]
[1747700116461,2.94057281,2549.5,2549.4,0.78423]
[1747700116763,2.94057281,2549.5,2549.4,10.454]
[1747700117065,14.96625828,2549.5,2549.1,3.99211]
[1747700117263,2.94057281,2549.5,2549.4,0.78423]
[1747700117459,2.94057281,2549.5,2549.1,3.2078]
[1747700117664,2.94057281,2549.5,2549.4,3.99203]
[1747700117868,0.00588462,2549.7,2549.6,0.78417]
[1747700118064,0.00588462,2549.7,2549.6,11.23817]
[1747700118263,8.27223786,2550.4,2549.6,15.454]
[1747700118468,8.27223786,2550.0,2549.6,10.454]
[1747700118763,8.27223786,2549.7,2549.4,3.2078]
[1747700119071,8.27223786,2549.6,2549.4,3.2078]
[1747700119271,12.02568547,2549.5,2549.1,3.2078]
[1747700119577,12.02568547,2549.2,2549.1,3.2078]
[1747700120163,15.31196788,2549.2,2549.0,0.00588893]
[1747700120376,13.36418547,2549.1,2549.0,3.21368893]
[1747700120663,9.61073786,2549.1,2549.0,3.99804893]
[1747700120869,1.3385,2549.1,2549.0,3.99804893]
[1747700121868,1.3385,2549.1,2549.0,3.21368893]
[1747700122065,3.2078,2550.2,2549.0,8.21368893]
[1747700122376,9.61073786,2549.8,2549.7,0.78414]
[1747700122668,1.3385,2549.8,2549.7,0.78414]
[1747700123168,3.2078,2550.2,2549.7,0.78414]
[1747700123362,3.2078,2550.2,2549.5,13.6568]
[1747700123363,0.687,2551.4,2549.5,13.6568]
[1747700123564,8.27223786,2550.4,2550.1,3.2078]
[1747700123766,0.78391,2550.5,2550.1,3.2078]
[1747700123971,12.02568547,2550.2,2550.1,3.2078]
[1747700124169,12.02568547,2550.2,2549.7,10.449]
[1747700124472,12.02568547,2549.8,2549.7,10.449]
[1747700124772,0.78389,2550.6,2549.7,13.6568]
[1747700125071,12.02568547,2550.1,2549.7,10.449]
[1747700125373,12.02568547,2550.4,2550.1,3.2078]
[1747700125673,12.02568547,2550.3,2550.1,3.2078]
[1747700126067,8.27223786,2550.2,2550.1,3.2078]
[1747700126571,0.6456,2550.7,2550.1,3.2078]
[1747700126771,12.02568547,2550.2,2550.1,3.2078]
[1747700126978,12.80967547,2550.2,2550.1,3.2078]
[1747700127270,0.78404,2550.1,2549.8,3.2078]
[1747700127471,3.28628241,2550.2,2549.8,3.2078]
[1747700127669,12.02568547,2550.2,2549.8,3.2078]
[1747700127872,8.27223786,2550.0,2549.8,3.99189]
[1747700128075,8.27223786,2550.0,2549.9,0.78408]
[1747700128278,3.2078,2550.4,2550.3,0.78396]
[1747700128667,8.27223786,2550.4,2550.3,3.99176]
[1747700128872,12.02568547,2550.4,2550.3,3.2078]
[1747700129278,15.31196788,2550.4,2550.3,3.2078]
[1747700129569,20.31196788,2550.4,2550.3,3.2078]
[1747700129971,21.09589788,2550.4,2550.1,3.2078]
[1747700130279,1.2945,2550.3,2550.1,3.2078]
[1747700130465,12.02568547,2550.2,2550.1,3.2078]
[1747700130866,20.31196788,2550.2,2549.5,3.2078]
[1747700131067,8.27223786,2549.6,2549.5,3.992]
[1747700131479,9.56673786,2549.6,2549.5,3.992]
[1747700132377,9.56673786,2549.6,2549.5,3.2078]
[1747700132378,16.60646788,2549.6,2549.5,3.2078]
[1747700132672,12.02568547,2549.1,2549.0,0.42050395]
[1747700132972,15.23348547,2549.1,2549.0,0.42050395]
[1747700133166,15.23348547,2549.1,2549.0,0.78436]
[1747700133563,12.02568547,2549.1,2549.0,0.78436]
[1747700133768,15.23348547,2549.1,2549.0,0.78436]
[1747700134169,3.2078,2549.4,2549.3,0.78424]
[1747700135571,3.2078,2549.4,2549.3,1.38504373]
[1747700136271,0.00588893,2549.8,2549.7,0.78414]
[1747700136468,8.27812679,2549.8,2549.7,0.78414]
[1747700136675,15.2393744,2549.8,2549.3,0.60080373]
[1747700136876,3.21368893,2549.8,2549.4,0.60080373]
[1747700137181,0.00588893,2549.8,2549.7,0.78414]
[1747700138081,0.00588893,2549.8,2549.7,1.38494373]
[1747700139279,8.93e-06,2549.8,2549.7,4.59274373]
[1747700139576,3.2078,2550.3,2550.2,0.78399]
[1747700139774,0.6669,2550.5,2550.4,0.78393]
[1747700139970,3.8747,2550.5,2550.4,0.78393]
[1747700140170,15.90038547,2550.5,2550.3,0.78395]
[1747700140370,3.8747,2550.5,2550.2,0.78398]
[1747700140674,3.8747,2550.5,2550.2,0.78399]
[1747700140869,12.02568547,2550.3,2550.2,0.78399]
[1747700141575,8.27223786,2550.3,2550.2,0.78399]
[1747700141777,12.02568547,2550.3,2550.2,0.78399]
[1747700142476,12.02568547,2550.3,2550.2,1.37459666]
[1747700143179,3.2078,2551.2,2550.2,11.81759666]
[1747700143379,10.56064547,2550.7,2550.6,0.78387]
[1747700143674,3.2078,2550.8,2550.7,0.78383]
[1747700144070,13.76844547,2550.8,2550.7,0.78383]
[1747700144372,18.76844547,2550.8,2550.5,0.78387]
[1747700144573,6.80719786,2550.6,2550.2,0.59060666]
[1747700144774,10.56064547,2550.8,2550.7,0.78383]
[1747700144972,5.44600313,2553.5,2550.7,53.64345544]
[1747700145171,9.4e-07,2552.3,2552.2,0.78337]
[1747700145476,5.46155184,2553.6,2553.5,0.78298]
[1747700145675,5.46155184,2553.6,2553.5,3.2078]
[1747700145676,12.2687497,2553.6,2553.5,3.2078]
[1747700145873,16.02219731,2553.6,2553.5,3.2078]
[1747700146274,16.02219731,2553.6,2553.5,3.99078]
[1747700146477,16.02219731,2553.6,2553.5,4.58138666]
[1747700146669,16.02219731,2553.6,2553.5,3.79840666]
[1747700147275,5.86861,2555.2,2553.5,3.79840666]
[1747700147276,3.2078,2555.1,2553.5,3.79840666]
[1747700147481,4.5303,2554.8,2553.8,3.2078]
[1747700147678,3.2078,2554.2,2553.5,0.59060666]
[1747700147883,1.95745,2553.5,2552.6,3.2078]
[1747700148084,0.78322,2552.7,2552.6,3.2078]
[1747700148274,3.99084,2553.3,2551.8,3.2078]
[1747700148477,0.78293,2553.7,2552.5,3.2078]
[1747700148670,3.2078,2553.4,2552.8,3.2078]
[1747700148973,14.7678,2553.3,2553.2,0.66904691]
[1747700149282,15.55084,2553.3,2553.2,0.66904691]
[1747700149486,20.55084,2553.3,2553.2,0.66904691]
[1747700149677,0.78332,2552.4,2552.1,1.33761734]
[1747700149979,3.2078,2552.6,2552.1,1.33761734]
[1747700150181,0.78328,2552.5,2552.1,1.33761734]
[1747700150377,3.2078,2552.6,2552.1,1.33761734]
[1747700150378,11.56,2552.6,2552.3,0.78333]
[1747700150575,3.99101,2552.8,2552.3,0.78333]
[1747700150777,11.56,2552.8,2552.3,0.00587717]